Cogmind - Beta 12 @@@ ROGUE MODE // 2023.09.30 @ 11:04:40 Player: LauraPalmer Result: Destroyed by S-10 Pest with Light Assault Rifle Performance ------------- Evolutions (0) 0 Regions Visited (2) 400 Robots Destroyed (19) 95 Value Destroyed (459) 459 Prototype IDs (3) 60 Alien Tech Used (0) 0 Bonus (0) 0 TOTAL SCORE: 1014 Bonus ------- None Cogmind --------- Core Integrity 0/250 Matter 295/300 Energy 80/100 System Corruption 0% Temperature Warm (153) Movement Rolling (80) Location -10/Mines Parts ------- > --- POWER (1) -------- (None) > --- PROPULSION (2) --- Wheel Wheel > --- UTILITY (2) ------ Improved Heat Sink Transport Network Coupler > --- WEAPON (2) ------- Particle Gun Particle Gun > --- INVENTORY (5) ---- Aluminum Leg Improved Heat Sink Improved Terrain Scanner Splice Drone Bay Rocket Launcher Peak State ------------ > --- POWER ------------ Light Nuclear Core > --- PROPULSION ------- Wheel Wheel > --- UTILITY ---------- Improved Heat Sink Transport Network Coupler > --- WEAPON ----------- Particle Gun Particle Gun > --- INVENTORY -------- Aluminum Leg Aluminum Leg Improved Heat Sink Splice Drone Bay [Rating: 14] Favorites ----------- Power Ion Engine Engine Ion Engine Power Core Light Nuclear Core Propulsion Wheel Wheel Wheel Utility Transport Network Coupler Device Improved Heat Sink Processor Transport Network Coupler Weapon Particle Gun Energy Gun Particle Gun Ballistic Gun Light Assault Rifle Build | -11 -10 -10 ------- Run | Jun Mat Min Slots Evolved . | . . . Power . | . . . Propulsion . | . . . Utility . | . . . Weapon . | . . . Parts Attached 19 | 7 5 7 Power 5 | 1 2 2 Engine 3 | 1 1 1 Core 2 | . 1 1 Reactor . | . . . Propulsion 5 | 2 1 2 Treads . | . . . Leg . | . . . Wheel 5 | 2 1 2 Hover . | . . . Flight . | . . . Utility 4 | 2 2 . Device 3 | 2 1 . Storage . | . . . Processor 1 | . 1 . Hackware . | . . . Protection . | . . . Artifact . | . . . Weapon 5 | 2 . 3 Energy Gun 3 | . . 3 Energy Cannon . | . . . Ballistic Gun 2 | 2 . . Ballistic Cannon . | . . . Launcher . | . . . Special Weapon . | . . . Impact Weapon . | . . . Slashing Weapon . | . . . Piercing Weapon . | . . . Special Melee Weapon . | . . . Unidentified Prototypes . | . . . Parts Lost 3 | . 1 2 Power 2 | . 1 1 Propulsion . | . . . Utility . | . . . Weapon 1 | . . 1 Highest Loss Streak 2 | . 1 2 To Critical Strikes . | . . . Average Slot Usage (%) 98 | . 98 99 Engine 8 | . 10 4 Core 5 | . 1 8 Wheel 27 | . 27 28 Device 15 | . 16 14 Processor 12 | . 11 14 Energy Gun 11 | . . 23 Ballistic Gun 17 | . 28 4 Naked Turns . | . . . Heaviest Build 12 | 10 10 12 Greatest Support 20 | 20 20 20 Greatest Overweight (x) . | . . . Average Overweight (x) . | . . . Largest Inventory Capacity 5 | 5 5 5 Average Capacity 5 | 5 5 5 Most Carried 5 | 5 5 5 Average Carried 4 | 2 4 4 Final Capacity 5 | 5 5 5 Final Carried 5 | 3 5 5 Class Distribution -------------------- 59% | Mutant 40% | Scavenger-Mutant Dominant Class ---------------- Mutant | -10/Materials Scavenger-Mutant | -10/Mines Resources | -11 -10 -10 ----------- Run | Jun Mat Min Matter Collected 543 | 290 148 105 Remotely . | . . . Salvage Created 608 | 95 273 240 Parts 41 | 12 18 11 Haulers Intercepted 1 | . 1 . Recyclers Shooed . | . . . Parts Field Recycled . | . . . Retrieved Matter . | . . . Parts Self-Destructed . | . . . Prevented . | . . . Kills | -11 -10 -10 ------- Run | Jun Mat Min Combat Hostiles Destroyed 10 | 1 4 5 Guns 10 | 1 4 5 Classes Destroyed 6 | 2 4 . Worker 1 | . 1 . Builder 2 | . 1 1 Tunneler 4 | 3 . 1 Hauler 1 | . 1 . Operator 1 | . 1 . Grunt 10 | 1 4 5 Best Kill Streak 4 | 4 2 2 Combat Bots Only 2 | 1 2 1 Max Kills in Single Turn 1 | 1 1 1 Gunslinging . | . . . Exploded . | . . . Melee . | . . . Uniques/NPCs Destroyed . | . . . Combat | -11 -10 -10 -------- Run | Jun Mat Min Damage Taken 722 | . 359 363 Core 258 | . 148 110 Absorbed by Shields . | . . . Core Remaining (%) 100 | 100 . . Volleys Fired 64 | 12 27 25 Largest 2 | 2 2 2 Hottest 130 | 40 40 130 Shots Fired 128 | 24 54 50 Gun 128 | 24 54 50 Cannon . | . . . Launcher . | . . . Special . | . . . Kinetic 86 | 24 54 8 Thermal 42 | . . 42 Explosive . | . . . Electromagnetic . | . . . Robot Hit Streak 15 | 5 9 15 Robot Miss Streak 3 | 3 3 1 Penetration Max . | . . . Secondary Targets 1 | . . 1 Max Gunslinging Chain 1 | . . 1 Shots Hit Robots 87 | 12 35 40 Core Hits 36 | 6 17 13 Critical Kills 1 | . 1 . Critical Parts Destroyed 1 | . . 1 Critical Strikes 6 | . 1 5 Burn 4 | . . 4 Destroy 2 | . 1 1 Melee Attacks . | . . . Impact . | . . . Slashing . | . . . Piercing . | . . . Sneak Attacks . | . . . Combat Hostiles . | . . . Follow-up Attacks . | . . . Damage Inflicted 1071 | 131 357 583 Guns 1067 | 131 353 583 Cannons . | . . . Explosions . | . . . Melee . | . . . Ramming 4 | . 4 . Kinetic 548 | 131 353 64 Thermal 519 | . . 519 Explosive . | . . . Electromagnetic . | . . . Impact . | . . . Slashing . | . . . Piercing . | . . . Highest Corruption . | . . . Average Corruption . | . . . Corruption Purged . | . . . Corruption Blocked . | . . . Overload Shots . | . . . Overflow Damage . | . . . Projectiles . | . . . Explosions . | . . . Melee . | . . . Knockbacks . | . . . Impact . | . . . Kinetic . | . . . Secondary . | . . . Self-Inflicted Damage 2 | . 2 . Shots . | . . . Rammed 1 | . 1 . Targets Rammed 1 | . 1 . Kicked . | . . . Crushed . | . . . Highest Temperature 357 | . 1 357 Average Temperature 126 | . 1 135 Received Heat Transfer 336 | . 201 135 Siege Activations . | . . . Robots Corrupted . | . . . Combat Hostiles . | . . . Parts Fried . | . . . Impact Corruptions . | . . . Robots Melted . | . . . Combat Hostiles . | . . . Parts Melted 2 | . . 2 Heat Transferred 1554 | . . 1554 Parts Sabotaged . | . . . Parts Stolen . | . . . Parts Stripped . | . . . Power Chain Reactions . | . . . Missiles Intercepted . | . . . Alert | -11 -10 -10 ------- Run | Jun Mat Min Peak Influence 260 | 36 260 251 Initial 101 | . 23 101 Average 136 | 16 162 158 Maximum Alert Level 1 | . 1 1 Low Security (%) 74 | 100 52 88 Level 1 25 | . 47 11 Level 2 . | . . . Level 3 . | . . . Level 4 . | . . . Level 5 . | . . . High Security . | . . . Max Security . | . . . Squads Dispatched 1 | . 1 . Investigation . | . . . Extermination . | . . . Reinforcement 1 | . 1 . Assault . | . . . Garrison . | . . . Intercept . | . . . Searches Triggered . | . . . Construction Impeded . | . . . Haulers Reinforced . | . . . Active Scanning Responses . | . . . Cargo Convoy Interrupts . | . . . Stealth | -11 -10 -10 --------- Run | Jun Mat Min Distress Signals . | . . . Communications Jammed . | . . . Distress Signals . | . . . Times Spotted 19 | 1 9 9 Peak Tracking Total 4 | 1 4 4 Tactical Retreats 1 | . 1 . Traps | -11 -10 -10 ------- Run | Jun Mat Min Traps Triggered 2 | . 2 . Indirectly . | . . . Trap Hack Attempts . | . . . Triggered . | . . . Disarmed . | . . . Reprogrammed . | . . . Reused . | . . . Traps Extracted . | . . . Installed . | . . . Triggered . | . . . Machines | -11 -10 -10 ---------- Run | Jun Mat Min Machines Disabled 1 | . . 1 Max in Single Turn 1 | . . 1 Machines Repaired . | . . . Machines Sabotaged . | . . . Overloaded Fab Kills . | . . . Hacking | -11 -10 -10 --------- Run | Jun Mat Min Machines Accessed 3 | . 2 1 Terminals 2 | . 2 . Fabricators . | . . . Repair Stations . | . . . Recycling Units . | . . . Scanalyzers . | . . . Garrison Access . | . . . Total Hacks 5 | . 4 1 Successful 3 | . 2 1 Failed 2 | . 2 . Catastrophic . | . . . Database Lockouts . | . . . Manual 1 | . . 1 Terminals 4 | . 4 . Fabricators . | . . . Repair Stations . | . . . Recycling Units . | . . . Scanalyzers . | . . . Garrison Access . | . . . Terminal Hacks 3 | . 2 1 Prototype ID Bank 1 | . 1 . Open Door 1 | . . 1 Transport Status 1 | . 1 . Fabricator Hacks . | . . . Repair Station Hacks . | . . . Recycling Unit Hacks . | . . . Scanalyzer . | . . . Garrison Access Hacks . | . . . Unauthorized Hacks . | . . . Terminals . | . . . Fabricators . | . . . Repair Stations . | . . . Recycling Units . | . . . Scanalyzers . | . . . Garrison Access . | . . . Data Cores Recovered 1 | . 1 . Used 1 | . 1 . Hacking Detections 2 | . 2 . Full Trace Events . | . . . Feedback Events . | . . . Feedback Blocked . | . . . Robot Schematics Acquired . | . . . Robots Built . | . . . Authchips . | . . . Time . | . . . Total Robot Build Rating . | . . . Part Schematics Acquired . | . . . Parts Built . | . . . Authchips . | . . . Time . | . . . Total Part Build Rating . | . . . Parts Repaired . | . . . Time . | . . . Parts Recycled . | . . . Recycled Matter . | . . . Retrieved Matter . | . . . Retrieved Components . | . . . Parts Scanalyzed . | . . . Part Schematics Acquired . | . . . Parts Damaged . | . . . Bothacking | -11 -10 -10 ------------ Run | Jun Mat Min Used RIF Installer . | . . . Robots Hacked . | . . . Non-combat . | . . . Combat . | . . . Robot Hacks Applied . | . . . Relay Couplers Released . | . . . Fabnet Peak Effective % . | . . . Robots Rewired . | . . . Allies Hacked . | . . . Hacks Repelled . | . . . Allies | -11 -10 -10 -------- Run | Jun Mat Min Total Allies . | . . . Largest Group . | . . . Highest-Rated Group . | . . . Highest-Rated Ally . | . . . Total Orders . | . . . Ally Attacks . | . . . Total Damage . | . . . Kills . | . . . Allies Corrupted . | . . . Allies Melted . | . . . Intel | -11 -10 -10 ------- Run | Jun Mat Min Robot Analysis Total . | . . . Derelict Logs Recovered 1 | . . 1 Drone Launches . | . . . Drone Recoveries . | . . . Exploration | -11 -10 -10 ------------- Run | Jun Mat Min Turns Passed 676 | 111 306 259 Spaces Moved 505 | 82 242 181 Core 17 | 17 . . Treads . | . . . Legs . | . . . Wheels 488 | 65 242 181 Hover . | . . . Flight . | . . . Fastest Speed 50 | 50 80 80 Average Speed 78 | 73 80 80 Slowest Speed 80 | 80 80 80 Overloaded Moves . | . . . Propulsion Burnouts . | . . . Robots Hopped . | . . . Cave-ins Triggered . | . . . Exploration Rate (%) 28 | 5 42 38 Regions Visited 2 Branch Regions 1 Pre-discovered Areas . | . . . Known Exits Taken . | . . . Unknown Exits Taken 2 | 1 1 . Scrap Searched . | . . . Spaces Dug . | . . . Terrain Destroyed . | . . . Melee . | . . . Projectile . | . . . AOE . | . . . Terrain Rammed . | . . . Walls Destroyed . | . . . Machines Disabled . | . . . Actions | -11 -10 -10 --------- Run | Jun Mat Min Total 670 | 110 309 251 Wait 40 | . 18 22 Move 503 | 81 241 181 Hop . | . . . Pick Up 25 | 10 9 6 Fast Attach 6 | . 1 5 Attach 13 | 7 4 2 Detach 1 | . 1 . Swap . | . . . Drop 17 | . 7 10 Fire 64 | 12 27 25 Melee . | . . . Ram 1 | . 1 . Kick . | . . . Crush . | . . . Escape Stasis . | . . . Rewire . | . . . Trap . | . . . Miscellaneous . | . . . Route ------- -11/Junkyard -10/Materials -10/Mines History --------- Turn | Location | Event 2 | -11/Junkyard | Met Revision 17 46 | -11/Junkyard | Discovered new exit (range 8) 112 | -11/Junkyard | Entered Materials 275 | -10/Materials | Core integrity fell below 50% 314 | -10/Materials | Build established: Mutant 330 | -10/Materials | Discovered new exit (range 6) 418 | -10/Materials | Entered Mines 430 | -10/Mines | Found the Drone Emporium 433 | -10/Mines | Found Prototype Device 531 | -10/Mines | Received a Rocket Launcher from a helpful Derelict 585 | -10/Mines | Core integrity fell below 20% 626 | -10/Mines | Learned Materials terminal intel 677 | -10/Mines | Destroyed by S-10 Pest with Light Assault Rifle Last Messages --------------- 00616_ Dropped Wheel. 00617_ Acquired Wheel. 00619_ Dropped Lgt. Nuclear Core. 00620_ Acquired Lgt. Ion Engine. 00621_ Acquired 21 matter. 00626_ Acquired derelict log, extracted data. Data stored: Materials terminal intel. 00648_ G-47 Trooper destroyed. 00656_ Acquired 9 matter. 00660_ Particle Gun destroyed. 00660_ Acquired Particle Gun. 00664_ K-01 Serf collects debris. 00668_ G-34 Mercenary overheating. 00670_ G-34 Mercenary heat damages Heat Sink. 00671_ Sml. Laser melted. 00671_ G-34 Mercenary destroyed. 00671_ Switching to secondary target: S-10 Pest. 00674_ Seismic Survey Station disabled. 00676_ Lgt. Ion Engine destroyed. 00676_ K-01 Serf collects debris. Map ----- +----------------------------------------------------+ | #?????????????????????????????? | | #### ####?????????????????????????????? | | ??# ##????????????????????????????????? | | ??# ##?????????????????????????????????? | | ?## ##??????????????????????????????????? | | ## #???????????????????????????????????? | | # #???????????????????????????????????? | | #???????????????????????????????????? | | ##??????????????????????????????????? | | #??????????????????????????????????? | | ##?????????????????????????????????? | | ###?????????? ???????????????????? | | #####?????? ##?????????????????? | | ### %% #?????? ?????????????????? | | ##?## # #?????? ?????????????????? | | #???# # *#?????? ?????????????????? | | ##### ## #????#? ?????????????????? | | ##### ###### ?????????????? | | ###### #???# = ?????????????? | | ###### #???# ###### ?????????????? | | #???# #?????# ?????????????????? | | #???# #?????? ?????????????????? | | #########???# #??????? #?????????????????? | | ?????######## ##??????# #?????????????????? | | ?????# ########k######????????????? | | ?????# """ "" !=@ % #????????????? | | ?????# """ """ ########s#### #????????????? | | ?????# """ """ #??????#=#?????????????????? | | ?????# #?????? ?????????????????? | | ?????# #????? s ????????????????? | | ?????############???? #???????????????? | | ????????????????????? ???????????????? | | ???????????????????? ??????????????? | | ??????????????????? ###?????????????? | | ?????????????????? ##???????????????? | | ?????????????????? ###????????????????? | | ????????????????? #???????????????????? | | ????????????????# #????????????????????? | | ?????????????????? ###?????????????????????? | | ?????????????????? ????????????????????????? | | ???????????????????????????????????????????? | | ???????????????????????????????????????????? | | ???????????????????????????????????????????? | | ???????????????????????????????????????????? | | ???????????????????????????????????????????? | | ???????????????????????????????????????????? | | ???????????????????????????????????????????? | | ???????????????????????????????????????????? | | ???????????????????????????????????????????? | | ???????????????????????????????????????????? | +----------------------------------------------------+ Best States ------------- Heat Dissipation 39 Energy Generation 14 Energy Capacity 250 Matter Stores 300 Matter Capacity 300 Sight Range 16 Terrain Scan Density 10 Evasion (%) 50 Item Schematics ----------------- None Robot Schematics ------------------ None Fabricated ------------ Nothing Alien Tech Used ----------------- None Achievements -------------- Dynamic Key Loot Pinata Challenges ------------ None Game ------ Seed FluxAutogunNanosword Manual? 0 Play Time 00:34:43 Cumulative 5.2 hours Start 2023.09.30 @ 10:24:21 End 2023.09.30 @ 11:04:40 Sessions 1 Manual Loads 0 Difficulty Rogue Special Mode None Game No. 2 Rogue 2 Adventurer 0 Explorer 0 Win Type - Total 0 Types 0/0/0/0/0/0/0/0/0 Lore% 1 Gallery% 6 Achievement% 6 Wizard Run 0 Options --------- ASCII 0 Keyboard 0 Movement Numpad Keybinds 0 Fullscreen 1 Font 24/Proggy Map View 76x50 Tactical HUD 1 Map Filters NONE Filters NONE Steam 1 RUN: 4f87ac09-7ecb-458a-9ac2-b3a15c0a61c4